bitfinex/quotes_ETHUSD_20250511
["timestamp","ask_amount","ask_price","bid_price","bid_amount"]
[1746955332245,4.123,2509.5,2508.3,0.03986071]
[1746955332563,5.42186848,2509.5,2508.3,1.17934678]
[1746955332728,5.42186848,2509.5,2508.4,0.00835515]
[1746955332937,0.55,2509.4,2508.4,0.00835482]
[1746955333113,0.55,2509.4,2508.2,3.355]
[1746955333114,4.53501695,2509.4,2508.3,0.04821797]
[1746955333319,0.55,2509.4,2508.3,0.00835482]
[1746955333659,0.55,2509.3,2508.2,3.355]
[1746955333853,1.14718685,2509.3,2508.3,0.33948649]
[1746955334018,3.98536163,2509.2,2508.3,0.33948649]
[1746955334554,3.98536163,2509.2,2508.0,21.143]
[1746955334555,10.6,2509.1,2508.0,16.498]
[1746955334756,10.6,2509.1,2508.1,0.03986838]
[1746955334757,10.05,2509.1,2508.1,0.03986838]
[1746955335061,14.03551304,2509.1,2508.1,0.03986838]
[1746955335357,10.05,2509.1,2508.1,0.03986838]
[1746955336022,3.35,2509.0,2508.1,8.03986838]
[1746955336229,10.05,2509.1,2508.2,2.45378684]
[1746955336526,13.399,2509.1,2508.2,2.45378684]
[1746955337164,3.98645864,2508.5,2508.0,16.498]
[1746955337324,10.05,2508.5,2508.0,16.498]
[1746955337527,3.98668434,2508.4,2508.0,16.498]
[1746955337859,13.396,2508.3,2508.0,3.355]
[1746955338019,17.38276915,2508.3,2508.0,3.355]
[1746955338226,3.98692289,2508.2,2507.5,3.355]
[1746955338464,3.98709045,2508.1,2507.5,3.355]
[1746955338766,3.98743016,2507.9,2507.5,3.355]
[1746955339081,3.98740214,2507.9,2507.5,3.355]
[1746955339372,10.05,2507.8,2507.5,3.355]
[1746955340761,10.05,2508.2,2507.5,3.355]
[1746955340934,3.98708185,2508.1,2507.5,3.355]
[1746955341273,14.03692886,2508.2,2507.5,3.355]
[1746955341274,10.05,2508.2,2507.5,3.355]
[1746955342349,3.9872693,2508.0,2507.5,3.355]
[1746955342555,3.98739981,2507.9,2507.5,3.355]
[1746955342716,0.55,2507.9,2507.5,3.355]
[1746955342922,10.05,2507.8,2507.0,16.501]
[1746955343159,0.55,2507.7,2507.0,16.501]
[1746955343359,3.98816747,2507.5,2506.7,3.356]
[1746955343525,10.05,2507.4,2506.8,0.3356]
[1746955344328,14.0380913,2507.5,2506.7,3.356]
[1746955344665,3.98879873,2507.1,2506.2,3.356]
[1746955344835,1.3016,2507.3,2506.2,3.356]
[1746955345034,3.349,2507.2,2506.3,8.0398967]
[1746955345437,7.33753089,2507.2,2506.3,8.0]
[1746955345635,8.36667858,2507.2,2506.3,1.1356]
[1746955345837,8.3666695,2507.2,2506.2,3.356]
[1746955346022,4.37807995,2507.2,2506.2,3.356]
[1746955346444,4.53875961,2507.1,2506.2,3.356]
[1746955346631,4.37807995,2507.2,2506.2,3.356]
[1746955347257,3.98871562,2507.1,2506.2,3.356]
[1746955347463,5.2244093,2507.0,2506.2,3.356]
[1746955348467,1.23553495,2507.0,2506.2,3.356]
[1746955349263,3.321,2507.0,2506.3,0.03989798]
[1746955349476,3.321,2507.0,2506.2,3.356]
[1746955349635,10.05,2507.4,2506.3,0.03989454]
[1746955349831,3.322,2507.4,2506.3,8.0]
[1746955350429,0.55,2507.3,2506.3,8.0]
[1746955350629,0.78603062,2507.2,2506.3,8.0]
[1746955350861,0.55,2507.4,2506.3,8.03989654]
[1746955351167,3.315,2507.1,2506.3,8.03989654]
[1746955352770,13.355,2507.5,2506.3,8.03989654]
[1746955353459,13.351,2507.5,2506.3,8.03989654]
[1746955354563,10.05,2507.5,2506.3,8.03989654]
[1746955354760,10.05,2507.5,2506.4,1.46958965]
[1746955354933,10.05,2507.5,2506.5,0.03988706]
[1746955357450,10.05,2507.5,2506.4,1.46958965]
[1746955357650,3.98864074,2507.2,2506.2,3.356]
[1746955358087,14.03864074,2507.2,2506.2,3.356]
[1746955358283,10.05,2507.2,2506.3,0.0398968]
[1746955358457,4.53852242,2507.2,2506.3,3.326]
[1746955358781,10.05,2507.6,2506.4,8.0]
[1746955358991,10.05,2507.6,2506.5,1.1326]
[1746955359493,10.05,2507.6,2506.6,0.03988333]
[1746955361754,10.05,2508.0,2506.6,0.03988333]
[1746955362583,10.05,2508.0,2506.5,9.1326]
[1746955362968,14.03728138,2508.0,2506.5,9.1326]
[1746955363179,14.03728138,2508.0,2506.6,2.04096]
[1746955363378,14.03734627,2508.0,2506.6,5.29396]
[1746955363773,10.05,2508.0,2506.6,5.29396]
[1746955364092,10.05,2508.0,2506.8,8.0]
[1746955364282,10.05,2508.0,2506.9,0.03987774]
[1746955364457,11.51112607,2508.0,2507.1,8.0]
[1746955364658,15.4984623,2508.0,2507.1,8.0]
[1746955365066,11.51112607,2508.0,2507.1,8.0]
[1746955366000,3.98757115,2507.8,2507.0,3.326]
[1746955366195,3.98739981,2507.9,2507.0,3.326]
[1746955366375,0.55,2507.6,2507.1,3.326]
[1746955366572,1.3159,2507.6,2506.9,3.326]
[1746955366787,4.5569,2507.6,2506.9,3.326]
[1746955367094,3.241,2507.6,2507.0,8.03989067]
[1746955367263,3.241,2507.6,2507.1,1.13658907]
[1746955367466,10.05,2507.7,2507.2,0.03988292]
[1746955367671,10.05,2507.7,2507.1,1.17646941]
[1746955368287,3.98812954,2507.5,2505.7,3.68161663]
[1746955368468,10.05,2507.5,2506.1,6.57]
[1746955368674,3.98827288,2507.4,2506.2,3.326]
[1746955369000,10.05,2507.5,2506.3,8.69679137]
[1746955369292,14.03812037,2507.5,2506.3,8.69679137]
[1746955369482,10.05,2507.5,2506.3,8.69679137]
[1746955369686,14.03805671,2507.5,2506.3,8.69679137]
[1746955369993,10.05,2507.5,2506.3,8.69679137]
[1746955370195,1.005,2507.4,2506.4,1.20227914]
[1746955370393,1.005,2507.4,2506.5,0.03988914]
[1746955370756,1.005,2507.4,2506.4,1.20227914]
[1746955371160,1.005,2507.4,2506.5,0.0398912]
[1746955371397,10.05,2507.5,2506.5,0.0398912]
[1746955371588,10.05,2507.5,2506.5,0.03988213]
[1746955372099,10.05,2507.5,2506.6,3.326]
[1746955372277,14.03772821,2507.7,2506.7,0.03988499]
[1746955372473,10.05,2507.7,2506.7,0.03988499]
[1746955372680,10.05,2507.9,2506.7,0.6593885]
[1746955373904,10.05,2508.1,2506.8,0.03987956]
[1746955374099,14.61128143,2508.2,2506.8,0.03987956]
[1746955374480,14.61128143,2508.2,2506.7,12.64539488]
[1746955374801,14.61128143,2508.2,2506.8,9.59713949]
[1746955375103,3.98718188,2508.1,2506.8,1.59713949]
[1746955375283,14.61123727,2508.2,2506.8,8.0]
[1746955375986,3.98714799,2508.1,2506.8,8.0]
[1746955376388,10.05,2508.0,2506.7,0.6593885]
[1746955376599,3.98749881,2507.9,2506.8,3.326]
[1746955376801,3.98787831,2507.6,2506.8,3.326]
[1746955377010,3.98829129,2507.4,2506.9,3.326]
[1746955377195,10.05,2507.4,2507.0,3.326]
[1746955377502,1.005,2507.4,2507.0,3.326]
[1746955379480,4.99323733,2507.4,2507.0,3.326]
[1746955379790,3.98864601,2507.2,2506.9,3.206]
[1746955379997,10.05,2507.3,2506.9,3.206]
[1746955382116,11.055,2507.4,2506.9,3.206]
[1746955383999,15.04319752,2507.4,2506.9,3.206]
[1746955384180,1.44044176,2507.3,2506.9,3.206]
[1746955384818,4.39114365,2507.1,2505.2,0.31]
[1746955384990,10.05,2507.0,2506.1,3.206]
[1746955385190,13.24,2507.0,2506.1,3.206]
[1746955385399,3.98904623,2506.9,2506.1,3.206]
[1746955385603,4.99416675,2506.8,2506.1,3.206]
[1746955385915,1.005,2506.8,2506.1,3.206]
[1746955386083,4.99417144,2506.8,2506.1,3.206]
[1746955386279,1.005,2506.8,2506.1,3.24590078]
[1746955386696,13.24,2507.0,2506.1,3.24590078]
[1746955387176,13.24,2507.0,2506.1,3.24589584]
[1746955387679,3.98900366,2506.9,2506.1,3.24589584]
[1746955387879,17.22884278,2507.0,2506.1,3.206]
[1746955388100,1.79819428,2506.9,2506.1,3.24589822]
[1746955389616,5.78721103,2506.9,2506.1,3.24589822]
[1746955389788,1.79819428,2506.9,2506.1,3.206]
[1746955390322,1.79819428,2506.9,2506.1,3.2458982]
[1746955390680,10.05,2507.0,2506.1,3.2458982]
[1746955391319,10.05,2507.1,2506.3,3.63804365]
[1746955391515,10.05,2507.7,2506.7,8.0]
[1746955391717,14.0374772,2507.9,2506.8,3.207]
[1746955391917,1.48061772,2507.8,2506.9,1.16058262]
[1746955392405,5.46822637,2507.8,2506.9,1.16058262]
[1746955392583,1.48061772,2507.8,2506.9,1.1207]
[1746955392983,1.48061772,2507.8,2507.0,0.03988263]
[1746955393291,10.05,2507.9,2507.0,0.03988243]
[1746955393623,10.05,2507.9,2506.9,9.1207]
[1746955394000,10.05,2507.9,2507.0,0.03987804]
[1746955394309,10.05,2507.9,2506.9,9.1207]
[1746955394820,10.05,2507.9,2507.2,3.63804365]
[1746955395115,0.57425863,2508.2,2507.9,8.0]
[1746955395324,0.57425863,2508.2,2508.0,3.24586433]
[1746955395830,0.57425863,2508.2,2508.1,8.0]
[1746955397707,0.57425863,2508.2,2508.1,11.206]
[1746955398418,0.38415794,2508.2,2508.1,14.84404365]
[1746955398582,0.38415794,2508.2,2508.1,16.32844802]
[1746955398987,0.38415794,2508.2,2508.1,37.84852202]
[1746955399298,0.38415794,2508.2,2508.1,34.93740205]
[1746955399624,0.38415794,2508.2,2508.1,20.94997805]
[1746955400199,2.5885812,2509.2,2508.1,20.94997805]
[1746955400522,2.5885812,2509.2,2508.4,11.63804365]
[1746955400713,2.5885812,2509.2,2508.4,14.77604365]
[1746955400918,1.62313915,2508.9,2508.5,8.55]
[1746955401087,1.39795795,2508.9,2508.8,11.63804365]
[1746955401294,1.39795795,2508.9,2508.8,14.84304365]
[1746955401500,1.39795795,2508.9,2508.8,17.64254802]
[1746955401702,1.39795795,2508.9,2508.8,26.90686802]
[1746955402185,1.39795795,2508.9,2508.8,17.64254802]
[1746955402390,1.39795795,2508.9,2508.8,26.56338002]
[1746955402799,1.39795795,2508.9,2508.8,24.25938002]
[1746955403120,1.39795795,2508.9,2508.8,17.41633637]
[1746955403307,1.39795795,2508.9,2508.8,20.78354802]
[1746955403820,1.39795795,2508.9,2508.8,44.00724702]
[1746955404004,1.39795795,2508.9,2508.8,36.63783602]
[1746955404536,1.39795795,2508.9,2508.8,30.04442502]
[1746955404728,1.39795795,2508.9,2508.8,25.61502502]
[1746955405127,1.39795795,2508.9,2508.8,19.26902502]
[1746955405326,1.39795795,2508.9,2508.8,20.77454802]
[1746955406120,1.39795795,2508.9,2508.8,12.77454802]
[1746955406495,1.39795795,2508.9,2508.8,29.86223302]
[1746955407712,1.39795795,2508.9,2508.8,22.36923902]
[1746955407912,1.39795795,2508.9,2508.8,15.22514802]
[1746955408116,1.39795795,2508.9,2508.8,15.22814802]
[1746955408329,1.39795795,2508.9,2508.8,12.10514802]
[1746955408530,1.39795795,2508.9,2508.8,9.12650437]
[1746955408732,1.39795795,2508.9,2508.8,6.00350437]
[1746955409818,1.39795795,2508.9,2508.8,3.114]
[1746955412212,1.39795795,2508.9,2508.6,13.152]
[1746955412645,1.39795795,2508.9,2508.7,3.114]
[1746955413175,0.7863,2508.8,2508.6,13.152]
[1746955415660,1.39795795,2508.9,2508.6,13.152]
[1746955415949,1.12992765,2509.2,2508.9,8.0]
[1746955416113,1.12992765,2509.2,2509.1,8.0]
[1746955416114,0.50101417,2509.2,2509.1,8.0]
[1746955416313,0.50101417,2509.2,2509.1,14.231]
[1746955416513,0.50101417,2509.2,2509.1,8.0]
[1746955416715,0.50101417,2509.2,2509.1,11.914]
[1746955416955,0.50101417,2509.2,2509.1,15.029]
[1746955417117,0.50101417,2509.2,2509.1,15.027]
[1746955417319,0.50101417,2509.2,2509.1,18.66504365]
[1746955419217,0.50101417,2509.2,2509.1,41.88874265]
[1746955419855,0.40113661,2509.2,2509.1,41.88874265]
[1746955420050,0.2005683,2509.2,2509.1,41.88874265]
[1746955420255,3.26002206,2509.6,2509.2,8.0]
[1746955420431,3.26002206,2509.6,2509.5,11.63804365]
[1746955422166,3.26002206,2509.6,2509.5,14.202]
[1746955422468,3.26002206,2509.6,2509.5,6.201]
[1746955422652,3.26002206,2509.6,2509.5,3.114]
[1746955423019,3.26002206,2509.6,2509.0,3.63804365]
[1746955423247,3.26002206,2509.6,2509.0,0.39480437]
[1746955423419,3.26002206,2509.6,2509.1,3.113]
[1746955423619,3.26002206,2509.6,2509.1,11.113]
[1746955425423,1.26002206,2509.6,2509.1,11.113]
[1746955425623,1.26002206,2509.6,2509.1,8.0]
[1746955425831,0.7974,2509.5,2509.2,3.113]
[1746955426167,0.20574221,2509.4,2509.2,3.113]
[1746955426461,0.7974,2509.5,2509.2,3.113]
[1746955428629,1.26002206,2509.6,2509.2,3.113]
[1746955429366,1.26002206,2509.6,2509.0,3.63804365]
[1746955429531,1.26002206,2509.6,2509.2,8.0]
[1746955430044,1.26002206,2509.6,2509.1,8.0]
[1746955430264,1.26002206,2509.6,2509.2,3.113]
[1746955430444,1.26002206,2509.6,2509.1,9.16380437]
[1746955430763,1.26002206,2509.6,2509.3,3.113]
[1746955431531,1.26002206,2509.6,2508.6,13.44764389]
[1746955431532,1.26002206,2509.6,2509.4,3.113]
[1746955431733,1.26002206,2509.6,2509.5,3.113]
[1746955438836,1.26002206,2509.6,2508.8,8.0]
[1746955439057,1.26002206,2509.6,2508.9,3.114]
[1746955439261,1.26002206,2509.6,2508.8,10.50856875]
[1746955439448,1.26002206,2509.6,2509.0,3.114]
[1746955439867,3.98523572,2509.3,2508.7,3.026]
[1746955440036,0.7686,2509.2,2508.7,3.026]
[1746955441685,0.7686,2509.5,2508.7,3.026]
[1746955442772,0.7686,2509.5,2508.8,0.03985482]
[1746955442993,0.7686,2509.5,2508.7,3.026]
[1746955442994,4.75346718,2509.5,2508.7,3.026]
[1746955443150,0.7686,2509.5,2508.3,3.63804365]
[1746955443370,0.7686,2509.5,2508.6,3.63804365]
[1746955443662,0.7686,2509.5,2508.7,0.03985482]
[1746955444242,1.26002206,2509.6,2508.7,0.03985482]
[1746955444439,1.26002206,2509.6,2509.1,8.0]
[1746955444770,1.26002206,2509.6,2509.2,3.06584694]
[1746955444963,1.26002206,2509.6,2509.3,1.10658469]
[1746955445343,1.26002206,2509.6,2509.3,1.14643081]
[1746955446763,1.26002206,2509.6,2509.3,1.10658469]
[1746955447877,1.26002206,2509.6,2509.2,13.144]
[1746955448048,4.78656136,2509.5,2509.2,13.144]
[1746955448240,3.985042,2509.4,2509.2,16.17]
[1746955448772,3.98517514,2509.3,2509.2,16.17]
[1746955449094,1.59870465,2509.3,2509.0,3.026]
[1746955449250,1.59870465,2509.3,2508.9,3.026]
[1746955450490,1.59870465,2509.3,2509.0,3.026]
[1746955451816,1.59870465,2509.3,2508.4,0.39326234]
[1746955452128,0.7534,2508.4,2507.9,3.026]
[1746955452341,14.79002591,2508.4,2507.9,3.026]
[1746955452513,3.98677234,2508.3,2507.9,3.026]
[1746955453214,0.7534,2508.2,2507.9,3.026]
[1746955453426,4.46111666,2508.1,2507.1,13.144]
[1746955453710,4.46111666,2508.1,2507.2,3.06688059]
[1746955453711,10.05,2508.1,2507.2,3.06688059]
[1746955454812,14.03710229,2508.1,2507.2,3.027]
[1746955455327,14.03710229,2508.1,2507.3,8.0]
[1746955455328,10.05,2508.1,2507.3,8.0]
[1746955456248,10.05,2508.1,2507.4,3.027]
[1746955456445,11.52902145,2508.1,2507.4,3.027]
[1746955456747,0.7534,2508.0,2507.4,3.027]
[1746955458143,0.7534,2508.0,2507.5,0.03987644]
[1746955458350,0.7534,2508.0,2507.4,3.027]
[1746955458351,10.05,2508.1,2507.4,3.027]
[1746955458558,10.05,2508.1,2507.5,0.66650437]
[1746955458857,10.05,2508.1,2507.5,8.66650437]
[1746955459720,10.05,2508.1,2507.6,0.03987026]
[1746955459919,10.05,2508.1,2507.6,3.67791391]
[1746955460344,10.05,2508.1,2507.7,8.0]
[1746955460651,0.8279,2508.4,2507.8,1.20766166]
[1746955460856,0.8279,2508.7,2507.8,1.20766166]
[1746955461060,0.8279,2508.7,2507.9,3.63804365]
[1746955461220,0.8279,2508.7,2508.0,3.06786458]
[1746955461415,0.8279,2508.7,2508.0,3.028]
[1746955461632,0.8279,2508.7,2508.1,0.66660437]
[1746955461846,0.8279,2508.7,2508.0,3.028]
[1746955462042,0.8279,2508.7,2508.1,3.027]
[1746955463119,3.9864557,2508.5,2507.5,0.66650437]
[1746955463321,3.9864557,2508.5,2507.6,3.027]
[1746955463519,3.9864557,2508.5,2507.7,3.027]
[1746955463755,0.7565,2508.3,2507.8,3.027]
[1746955463957,0.7565,2508.0,2507.8,3.027]
[1746955464156,0.7565,2508.0,2507.7,3.027]
[1746955466570,4.74375952,2508.0,2507.7,3.027]
[1746955466728,0.7565,2508.0,2507.7,3.027]
[1746955466933,14.79384108,2508.0,2507.7,3.027]
[1746955467171,0.7963,2507.8,2507.1,13.144]
[1746955467371,14.8338777,2507.8,2507.6,3.028]
[1746955467569,10.8463,2507.8,2507.6,3.028]
[1746955468074,0.7963,2507.7,2507.1,13.144]
[1746955468226,3.57534636,2507.6,2507.1,16.172]
[1746955468428,3.008,2507.6,2507.1,16.172]
[1746955468831,0.7963,2507.5,2507.1,13.144]
[1746955469029,4.78439343,2507.5,2507.1,13.144]
[1746955469764,0.7963,2507.5,2507.1,13.144]
[1746955473333,10.05,2507.6,2507.1,13.144]
[1746955473640,0.7963,2507.8,2507.2,1.35428475]
[1746955474271,10.05,2508.0,2507.2,9.35428475]
[1746955475448,3.008,2508.3,2507.2,9.35428475]
[1746955475849,3.008,2508.3,2507.4,3.63804365]
[1746955476079,3.008,2508.3,2507.5,3.04787185]
[1746955476280,10.05,2509.0,2507.7,3.63804365]
[1746955476581,0.7963,2509.1,2507.8,8.0]
[1746955477583,4.78181734,2509.1,2507.8,8.0]
[1746955478085,0.7963,2509.1,2507.8,11.008]
[1746955478386,3.9861124,2508.8,2507.9,1.46460437]
[1746955479356,0.7963,2509.1,2507.9,1.46460437]
[1746955479557,3.98565165,2509.0,2507.8,3.008]
[1746955479756,3.98570916,2509.0,2507.8,3.008]
[1746955480367,3.98636746,2508.6,2507.6,8.66859155]
[1746955480564,3.98636746,2508.6,2507.7,3.008]
[1746955480861,0.7752,2508.3,2507.8,3.008]
[1746955481174,0.7752,2508.3,2507.8,3.37565916]
[1746955482096,0.7752,2508.3,2507.8,3.008]
[1746955482956,4.75921846,2508.6,2507.8,3.008]
[1746955484209,10.05,2508.5,2507.8,3.008]
[1746955484677,10.05,2508.5,2507.9,0.03987204]
[1746955485461,0.7729,2509.1,2508.0,6.64404365]
[1746955485665,10.05,2509.4,2508.3,3.63804365]
[1746955485902,14.03503746,2509.4,2508.4,16.159]
[1746955486099,13.68804365,2509.4,2508.5,3.008]
[1746955486269,3.98560001,2509.1,2508.5,3.008]
[1746955486470,3.98570136,2509.0,2508.5,3.008]
[1746955486696,3.006,2509.3,2508.5,4.6239]
[1746955487005,3.006,2509.3,2508.5,4.66375916]
[1746955487166,14.03507751,2509.4,2508.5,4.66375916]
[1746955487365,13.056,2509.4,2508.5,4.66375916]
[1746955487901,17.04104229,2509.4,2508.5,4.66375916]
[1746955488095,17.04104229,2509.4,2508.6,1.78147592]
[1746955488487,17.04104229,2509.4,2508.5,3.008]
[1746955488704,3.98535709,2509.2,2508.5,3.008]
[1746955489304,13.056,2509.4,2508.6,3.008]
[1746955490195,17.04107553,2509.4,2508.6,3.008]
[1746955490386,3.98535056,2509.2,2508.6,3.008]
[1746955491414,3.98559719,2509.1,2508.6,3.008]
[1746955491913,3.98564086,2509.1,2508.6,3.008]
[1746955492281,3.98572537,2509.0,2508.6,3.008]
[1746955492510,3.98556443,2509.1,2508.6,3.008]
[1746955492707,4.78266922,2509.1,2508.6,3.008]
[1746955492912,0.79709445,2509.1,2508.6,3.008]
[1746955493095,3.9854928,2509.1,2508.6,3.008]
[1746955493297,10.05,2509.1,2508.6,3.008]
[1746955493502,14.03550939,2509.1,2508.6,3.008]
[1746955493818,10.05,2509.1,2508.6,3.008]
[1746955494494,14.03550579,2509.1,2508.6,3.008]
[1746955494822,14.03557401,2509.1,2508.6,3.008]
[1746955495314,10.05,2509.1,2508.6,3.008]
[1746955496518,10.05,2509.1,2508.6,4.6239]
[1746955497579,14.03554745,2509.1,2508.6,3.008]
[1746955497976,4.40514365,2509.0,2508.5,3.007]
[1746955498181,3.98628717,2508.6,2508.4,13.151]
[1746955498407,3.98622381,2508.7,2508.4,13.151]
[1746955499119,10.05,2508.8,2508.4,13.151]
[1746955499324,10.05,2508.8,2508.4,14.7668]
[1746955499617,13.054,2508.8,2508.4,14.7668]
[1746955499824,13.054,2508.8,2508.4,13.151]
[1746955500596,17.03997678,2508.8,2508.4,13.151]
[1746955500998,10.05,2508.8,2508.4,13.151]
[1746955502288,14.81696206,2509.3,2508.4,13.151]
[1746955502483,3.98544124,2509.2,2508.4,13.151]
[1746955502690,3.9855194,2509.1,2508.4,14.7668]
[1746955504123,10.8317,2509.3,2508.4,14.7668]
[1746955504422,3.98535716,2509.2,2508.4,14.7668]
[1746955504787,10.8317,2509.3,2508.4,14.7668]
[1746955505001,14.81696523,2509.3,2508.4,1.6158]
[1746955505205,14.81696523,2509.3,2508.3,3.007]
[1746955505499,3.98534999,2509.2,2508.3,3.007]
[1746955506337,14.81693505,2509.3,2508.3,3.007]
[1746955506835,3.98534372,2509.2,2508.3,3.007]
[1746955508235,10.05,2509.2,2508.3,3.007]
[1746955508403,13.68804365,2509.2,2508.0,13.148]
[1746955508603,3.98637985,2508.6,2508.1,3.003]
[1746955508825,14.03637985,2508.6,2508.1,3.003]
[1746955509146,10.05,2508.6,2508.1,3.003]
[1746955509540,14.03633378,2508.6,2508.1,3.003]
[1746955509741,10.05,2508.6,2508.1,3.003]
[1746955510841,0.55,2508.3,2507.6,3.003]
[1746955511008,3.98689181,2508.3,2507.6,3.003]
[1746955511201,11.4048,2508.5,2507.6,3.003]
[1746955511428,10.05,2508.5,2507.6,3.04287735]
[1746955511630,14.03659628,2508.5,2507.7,0.30428774]
[1746955512020,10.05,2508.5,2507.7,0.34416167]
[1746955512721,14.03647252,2508.5,2507.7,0.30428774]
[1746955513040,3.98702651,2508.2,2507.6,3.003]
[1746955513244,0.7819,2508.3,2507.6,3.003]
[1746955513407,3.98664895,2508.4,2507.6,3.003]
[1746955513814,10.05,2508.5,2507.6,3.003]
[1746955514143,3.98704265,2508.2,2507.6,3.003]
[1746955514315,1.48183005,2508.4,2507.6,3.003]
[1746955514516,3.986765,2508.3,2507.6,3.003]
[1746955514717,3.001,2508.2,2507.6,3.003]
[1746955516024,6.98795574,2508.2,2507.6,3.003]
[1746955517561,3.96461171,2508.2,2507.6,3.003]
[1746955517848,3.96461171,2508.2,2507.3,3.004]
[1746955517849,3.98748298,2507.9,2507.3,3.004]
[1746955518040,3.98732287,2508.0,2507.3,3.004]
[1746955518239,3.98759918,2507.8,2507.3,3.004]
[1746955518952,3.98724082,2508.0,2507.3,3.004]
[1746955519149,5.46907087,2508.0,2507.3,3.004]
[1746955519342,3.9874865,2507.9,2507.3,3.004]
[1746955519540,3.98739981,2507.9,2507.3,3.004]
[1746955520143,6.98739981,2507.9,2507.3,3.004]
[1746955520459,3.98757438,2507.8,2507.3,3.004]
[1746955520759,3.98773769,2507.7,2507.3,3.004]
[1746955521130,3.98763241,2507.8,2507.3,3.004]
[1746955521329,6.9874343,2507.9,2507.3,3.004]
[1746955521560,3.98759716,2507.8,2507.3,3.004]
[1746955522459,10.05,2508.1,2507.3,3.004]
[1746955522761,10.05,2508.1,2507.4,0.3004]
[1746955523126,14.03717971,2508.1,2507.4,0.3004]
[1746955523325,3.0,2508.3,2507.4,0.3004]
[1746955523557,6.98678087,2508.3,2507.4,0.3004]
[1746955523763,3.98696085,2508.2,2507.4,0.3004]
[1746955523962,3.0,2508.3,2507.4,0.3004]
[1746955524255,3.0,2508.3,2507.5,0.03987685]
[1746955524459,3.0,2508.3,2507.4,0.3004]
[1746955525365,3.0,2508.3,2507.5,0.0398759]
[1746955525538,6.98678849,2508.3,2507.4,0.3004]
[1746955525738,3.98692659,2508.2,2507.4,0.3004]
[1746955526558,6.98682615,2508.3,2507.4,0.3004]
[1746955529764,3.98692765,2508.2,2507.4,0.3004]
[1746955530560,10.864,2508.1,2506.7,11.93283583]
[1746955530768,14.03717806,2508.1,2507.0,3.004]
[1746955530948,14.03717806,2508.1,2507.0,11.004]
[1746955531268,14.03717806,2508.1,2507.1,0.03988062]
[1746955531442,14.03717806,2508.1,2507.1,2.45906868]
[1746955531769,14.03717806,2508.1,2507.1,2.41918806]
[1746955531962,14.03717806,2508.1,2507.1,10.41918806]
[1746955532165,10.05,2508.1,2507.1,10.41918806]
[1746955532670,10.05,2508.1,2507.2,0.03987583]
[1746955532845,10.05,2508.1,2507.2,2.54998658]
[1746955533042,10.05,2508.1,2507.1,2.41918806]
[1746955533231,14.03710926,2508.1,2507.1,10.41918806]
[1746955533554,3.98738774,2508.0,2507.1,10.41918806]
[1746955533926,3.98738774,2508.0,2507.1,2.41918806]
[1746955534131,3.98795154,2507.6,2507.0,3.004]
[1746955534967,3.98779383,2507.7,2507.0,3.004]
[1746955535168,2.997,2507.8,2507.0,3.004]
[1746955535371,6.98463294,2507.8,2507.0,3.004]
[1746955536062,3.98773988,2507.7,2507.1,1.6152]
[1746955536470,6.98460418,2507.8,2507.1,1.6152]
[1746955536968,2.997,2507.8,2507.1,1.6152]
[1746955537144,2.997,2507.8,2507.1,1.65508312]
[1746955537741,2.997,2507.8,2507.1,9.65508312]
[1746955537945,3.98731234,2508.0,2507.2,1.26590831]
[1746955538147,17.03316548,2508.1,2507.2,1.26590831]
[1746955538480,3.98729033,2508.0,2507.2,1.26590831]
[1746955538963,13.046,2508.1,2507.2,1.26590831]
[1746955539159,3.98738972,2508.0,2507.2,1.26590831]
[1746955539548,17.03315701,2508.1,2507.3,1.08811083]
[1746955539735,13.046,2508.1,2507.3,1.08811083]
[1746955540285,17.0331325,2508.1,2507.3,1.08811083]
[1746955540649,3.98731219,2508.0,2507.3,1.08811083]
[1746955541059,3.98731219,2508.0,2507.4,2.998]
[1746955541232,14.03731219,2508.0,2507.4,2.998]
[1746955541438,3.98755883,2507.8,2507.4,2.998]
[1746955542385,3.98755883,2507.8,2507.5,2.998]
[1746955542867,3.9877296,2507.7,2507.5,2.998]
[1746955543077,4.53762059,2507.8,2507.5,2.998]
[1746955544057,10.05,2508.0,2507.5,2.998]
[1746955544955,10.05,2508.0,2507.5,3.2978]
[1746955546166,14.03725532,2508.0,2507.5,2.998]
[1746955546362,0.55,2507.9,2506.6,0.29318053]
[1746955546567,0.55,2507.5,2506.3,0.18167536]
[1746955546769,3.9877974,2507.7,2507.0,2.998]
[1746955547285,3.9875722,2507.8,2507.0,2.998]
[1746955547495,0.55,2507.7,2507.0,2.998]
[1746955547679,3.98819226,2507.5,2507.0,2.998]
[1746955547855,3.98796754,2507.6,2507.0,2.998]
[1746955548590,3.98812542,2507.5,2507.0,2.998]
[1746955548890,3.98803589,2507.5,2507.0,2.998]
[1746955549183,3.98827242,2507.4,2507.1,2.998]
[1746955549393,3.98844422,2507.3,2507.1,2.998]
[1746955549784,3.98869503,2507.1,2506.4,1.71143817]
[1746955549961,3.98858238,2507.2,2506.5,2.998]
[1746955550157,3.98858238,2507.2,2506.4,8.53494818]
[1746955550158,3.98891597,2507.0,2506.4,0.53494818]
[1746955550356,3.98891597,2507.0,2506.5,2.998]
[1746955550563,3.98883679,2507.0,2506.5,2.998]
[1746955551594,4.53873611,2507.1,2506.5,2.998]
[1746955552318,3.98888649,2507.0,2506.2,13.154]
[1746955552460,4.53872703,2507.1,2506.6,2.998]
[1746955552796,5.62894795,2507.1,2506.6,2.998]
[1746955552999,1.64024502,2507.1,2506.6,2.998]